[Event "Titled Tuesday Blitz October 5 2021"]
[White "Paltrinieri, Nicholas"]
[Black "Sychev, Klementy"]
[WhiteFideId "828262"]
[BlackFideId "4114060"]
[WhiteElo "2254"]
[BlackElo "2615"]
[Result "0-1"]
[Round "10"]
[TimeControl "180+1"]
[Date "2021.10.05"]
[WhiteClock "0:00:01"]
[BlackClock "0:00:33"]

1. d4 {[%clk 0:03:00]}  f5 {[%clk 0:02:59]} 2. Bg5 {[%clk 0:02:59]}  g6 {[%clk 0:02:53]} 3. Nd2 {[%clk 0:02:57]}  Bg7 {[%clk 0:02:52]} 4. Ngf3 {[%clk 0:02:55]}  Nf6 {[%clk 0:02:48]} 5. Bxf6 {[%clk 0:02:51]}  Bxf6 {[%clk 0:02:39]} 6. e4 {[%clk 0:02:51]}  e6 {[%clk 0:02:38]} 7. Bd3 {[%clk 0:02:43]}  O-O {[%clk 0:02:36]} 8. Qe2 {[%clk 0:02:37]}  d5 {[%clk 0:02:29]} 9. e5 {[%clk 0:02:35]}  Be7 {[%clk 0:02:29]} 10. h4 {[%clk 0:02:26]}  c5 {[%clk 0:02:29]} 11. c3 {[%clk 0:02:25]}  Nc6 {[%clk 0:02:29]} 12. a3 {[%clk 0:02:14]}  Qb6 {[%clk 0:02:26]} 13. dxc5 {[%clk 0:02:13]}  Qxb2 {[%clk 0:02:23]} 14. O-O {[%clk 0:02:11]}  Qxc3 {[%clk 0:02:20]} 15. Rfc1 {[%clk 0:02:03]}  Qa5 {[%clk 0:02:18]} 16. Bb5 {[%clk 0:01:39]}  Bd7 {[%clk 0:02:16]} 17. Nb3 {[%clk 0:01:34]}  Qd8 {[%clk 0:02:13]} 18. h5 {[%clk 0:01:17]}  gxh5 {[%clk 0:02:11]} 19. Bxc6 {[%clk 0:00:57]}  bxc6 {[%clk 0:02:10]} 20. Rab1 {[%clk 0:00:47]}  Kh8 {[%clk 0:02:10]} 21. Nfd4 {[%clk 0:00:47]}  Rg8 {[%clk 0:02:02]} 22. Qxh5 {[%clk 0:00:46]}  Rg5 {[%clk 0:02:01]} 23. Qh2 {[%clk 0:00:44]}  Qc7 {[%clk 0:01:55]} 24. Rc3 {[%clk 0:00:44]}  Rag8 {[%clk 0:01:55]} 25. Re1 {[%clk 0:00:20]}  Rxg2+ {[%clk 0:01:44]} 26. Qxg2 {[%clk 0:00:19]}  Rxg2+ {[%clk 0:01:44]} 27. Kxg2 {[%clk 0:00:20]}  Qd8 {[%clk 0:01:44]} 28. Rh1 {[%clk 0:00:18]}  Bg5 {[%clk 0:01:41]} 29. Rch3 {[%clk 0:00:15]}  h6 {[%clk 0:01:40]} 30. Nf3 {[%clk 0:00:15]}  Kh7 {[%clk 0:01:35]} 31. Nbd4 {[%clk 0:00:16]}  Qe7 {[%clk 0:01:32]} 32. Rh5 {[%clk 0:00:16]}  Bf4 {[%clk 0:01:05]} 33. R1h4 {[%clk 0:00:16]}  Be8 {[%clk 0:00:57]} 34. Nxf5 {[%clk 0:00:05]}  exf5 {[%clk 0:00:55]} 35. Rxf5 {[%clk 0:00:05]}  Bc1 {[%clk 0:00:54]} 36. Rf6 {[%clk 0:00:05]}  Bg6 {[%clk 0:00:44]} 37. Rg4 {[%clk 0:00:05]}  Be4 {[%clk 0:00:43]} 38. Kg3 {[%clk 0:00:02]}  Bxf3 {[%clk 0:00:42]} 39. Rxf3 {[%clk 0:00:03]}  Qxe5+ {[%clk 0:00:41]} 40. Kg2 {[%clk 0:00:04]}  Bg5 {[%clk 0:00:38]} 41. Rf7+ {[%clk 0:00:04]}  Kg6 {[%clk 0:00:38]} 42. Rxa7 {[%clk 0:00:04]}  d4 {[%clk 0:00:35]} 43. Ra6 {[%clk 0:00:04]}  Qd5+ {[%clk 0:00:33]} 44. Kh2 {[%clk 0:00:03]}  d3 {[%clk 0:00:34]} 45. Rg1 {[%clk 0:00:02]}  d2 {[%clk 0:00:34]} 46. Ra4 {[%clk 0:00:01]}  d1=Q {[%clk 0:00:33]} 47. Rxd1 {[%clk 0:00:01]}  Qxd1 {[%clk 0:00:34]} 48. Re4 {[%clk 0:00:01]}  Qf3 {[%clk 0:00:33]} 49. Re6+ {[%clk 0:00:01]}  Kh5 {[%clk 0:00:33]} 50. Rxh6+ {[%clk 0:00:01]}  Kxh6 {[%clk 0:00:33]} 0-1


[Site "https://www.chess.com"]

[Event "Titled Tuesday Blitz October 5 2021"]
[White "Petesch, Gabriel"]
[Black "Deuer, Marius"]
[WhiteFideId "2032465"]
[BlackFideId "16236432"]
[WhiteElo "2374"]
[BlackElo "2091"]
[Result "1-0"]
[Round "10"]
[TimeControl "180+1"]
[Date "2021.10.05"]
[WhiteClock "0:00:05"]
[BlackClock "0:00:50"]

1. Nf3 {[%clk 0:03:00]}  b6 {[%clk 0:02:54]} 2. b3 {[%clk 0:03:01]}  Bb7 {[%clk 0:02:55]} 3. Bb2 {[%clk 0:03:02]}  Bxf3 {[%clk 0:02:55]} 4. exf3 {[%clk 0:03:00]}  Nc6 {[%clk 0:02:56]} 5. d4 {[%clk 0:02:59]}  e6 {[%clk 0:02:54]} 6. Bd3 {[%clk 0:02:50]}  Nf6 {[%clk 0:02:52]} 7. c4 {[%clk 0:02:48]}  Bb4+ {[%clk 0:02:51]} 8. Nd2 {[%clk 0:02:45]}  O-O {[%clk 0:02:52]} 9. O-O {[%clk 0:02:31]}  d5 {[%clk 0:02:51]} 10. Rc1 {[%clk 0:02:25]}  dxc4 {[%clk 0:02:45]} 11. Rxc4 {[%clk 0:02:25]}  Qd7 {[%clk 0:02:42]} 12. Qc2 {[%clk 0:01:46]}  Bxd2 {[%clk 0:02:25]} 13. Rxc6 {[%clk 0:01:11]}  Bf4 {[%clk 0:02:20]} 14. d5 {[%clk 0:00:58]}  Nxd5 {[%clk 0:01:37]} 15. Bxh7+ {[%clk 0:00:52]}  Kh8 {[%clk 0:01:30]} 16. Be4 {[%clk 0:00:22]}  Nb4 {[%clk 0:01:29]} 17. Qc3 {[%clk 0:00:21]}  f5 {[%clk 0:01:26]} 18. Qxb4 {[%clk 0:00:16]}  fxe4 {[%clk 0:01:25]} 19. Qxe4 {[%clk 0:00:14]}  e5 {[%clk 0:01:25]} 20. g3 {[%clk 0:00:10]}  Rae8 {[%clk 0:01:14]} 21. gxf4 {[%clk 0:00:05]}  Rxf4 {[%clk 0:01:15]} 22. Qg6 {[%clk 0:00:04]}  Rxf3 {[%clk 0:01:03]} 23. Qh5+ {[%clk 0:00:02]}  Kg8 {[%clk 0:01:01]} 24. Qxf3 {[%clk 0:00:03]}  e4 {[%clk 0:01:01]} 25. Qg2 {[%clk 0:00:03]}  Re7 {[%clk 0:00:56]} 26. Rg6 {[%clk 0:00:03]}  e3 {[%clk 0:00:53]} 27. fxe3 {[%clk 0:00:04]}  Qd3 {[%clk 0:00:50]} 28. Rxg7+ {[%clk 0:00:05]} 1-0


[Site "https://www.chess.com"]

[Event "Titled Tuesday Blitz October 5 2021"]
[White "Potapova, Margarita"]
[Black "Garcia Blanco, Omar"]
[WhiteFideId "14126869"]
[BlackFideId "2287153"]
[WhiteElo "2214"]
[BlackElo "2291"]
[Result "0-1"]
[Round "10"]
[TimeControl "180+1"]
[Date "2021.10.05"]
[WhiteClock "0:00:04"]
[BlackClock "0:00:11"]

1. c4 {[%clk 0:02:54]}  e5 {[%clk 0:02:58]} 2. g3 {[%clk 0:02:53]}  Nc6 {[%clk 0:02:58]} 3. Bg2 {[%clk 0:02:52]}  Bc5 {[%clk 0:02:57]} 4. Nc3 {[%clk 0:02:45]}  d6 {[%clk 0:02:57]} 5. Nf3 {[%clk 0:02:40]}  f5 {[%clk 0:02:35]} 6. O-O {[%clk 0:02:35]}  Nf6 {[%clk 0:02:33]} 7. a3 {[%clk 0:02:32]}  a5 {[%clk 0:02:31]} 8. e3 {[%clk 0:02:21]}  e4 {[%clk 0:02:29]} 9. Ne1 {[%clk 0:02:21]}  O-O {[%clk 0:02:25]} 10. d4 {[%clk 0:02:21]}  Ba7 {[%clk 0:02:19]} 11. b4 {[%clk 0:02:06]}  Kh8 {[%clk 0:02:11]} 12. Bb2 {[%clk 0:02:01]}  Qe8 {[%clk 0:02:08]} 13. Nb5 {[%clk 0:01:58]}  Bb8 {[%clk 0:02:06]} 14. d5 {[%clk 0:01:32]}  Ne5 {[%clk 0:02:05]} 15. Qe2 {[%clk 0:01:32]}  Bd7 {[%clk 0:01:51]} 16. Nd4 {[%clk 0:01:31]}  Ba7 {[%clk 0:01:47]} 17. f4 {[%clk 0:01:23]}  exf3 {[%clk 0:01:46]} 18. Nexf3 {[%clk 0:01:23]}  Neg4 {[%clk 0:01:44]} 19. Rae1 {[%clk 0:01:19]}  axb4 {[%clk 0:01:43]} 20. axb4 {[%clk 0:01:19]}  Bb6 {[%clk 0:01:42]} 21. Ng5 {[%clk 0:01:14]}  Ra2 {[%clk 0:01:33]} 22. c5 {[%clk 0:01:11]}  dxc5 {[%clk 0:01:32]} 23. Nde6 {[%clk 0:01:11]}  Bb5 {[%clk 0:01:26]} 24. Qc2 {[%clk 0:00:37]}  Bxf1 {[%clk 0:01:25]} 25. Bxf1 {[%clk 0:00:35]}  cxb4 {[%clk 0:01:22]} 26. Nxf8 {[%clk 0:00:31]}  Nxe3 {[%clk 0:01:12]} 27. Qb3 {[%clk 0:00:29]}  Nc2+ {[%clk 0:01:06]} 28. Kg2 {[%clk 0:00:13]}  Nxe1+ {[%clk 0:01:06]} 29. Kh1 {[%clk 0:00:12]}  Rxb2 {[%clk 0:00:56]} 30. Qxb2 {[%clk 0:00:12]}  Qe3 {[%clk 0:00:56]} 31. Nh3 {[%clk 0:00:06]}  Qf3+ {[%clk 0:00:27]} 32. Bg2 {[%clk 0:00:05]}  Qd1 {[%clk 0:00:28]} 33. Bf1 {[%clk 0:00:05]}  Qxd5+ {[%clk 0:00:20]} 34. Bg2 {[%clk 0:00:04]}  Qd1 {[%clk 0:00:20]} 35. Bf1 {[%clk 0:00:04]}  Qd5+ {[%clk 0:00:18]} 36. Bg2 {[%clk 0:00:04]}  Ne4 {[%clk 0:00:17]} 37. Ng5 {[%clk 0:00:03]}  Qd1 {[%clk 0:00:15]} 38. Bf1 {[%clk 0:00:02]}  Nd3 {[%clk 0:00:14]} 39. Qg2 {[%clk 0:00:02]}  Nef2+ {[%clk 0:00:14]} 40. Kg1 {[%clk 0:00:02]}  Ng4+ {[%clk 0:00:14]} 41. Kh1 {[%clk 0:00:02]}  Ngf2+ {[%clk 0:00:14]} 42. Kg1 {[%clk 0:00:02]}  Nh3+ {[%clk 0:00:14]} 43. Kh1 {[%clk 0:00:02]}  Ndf2+ {[%clk 0:00:14]} 44. Qxf2 {[%clk 0:00:02]}  Nxf2+ {[%clk 0:00:15]} 45. Kg2 {[%clk 0:00:02]}  Qd5+ {[%clk 0:00:14]} 46. Nf3 {[%clk 0:00:02]}  Kg8 {[%clk 0:00:14]} 47. Ng6 {[%clk 0:00:02]}  hxg6 {[%clk 0:00:14]} 48. Be2 {[%clk 0:00:02]}  Ng4 {[%clk 0:00:12]} 49. h3 {[%clk 0:00:02]}  Ne5 {[%clk 0:00:12]} 50. h4 {[%clk 0:00:01]}  Nxf3 {[%clk 0:00:11]} 51. Bxf3 {[%clk 0:00:02]}  Qxf3+ {[%clk 0:00:12]} 52. Kxf3 {[%clk 0:00:02]}  b3 {[%clk 0:00:13]} 53. Kf4 {[%clk 0:00:03]}  b2 {[%clk 0:00:13]} 54. Kg5 {[%clk 0:00:03]}  Be3+ {[%clk 0:00:12]} 55. Kxg6 {[%clk 0:00:04]}  b1=Q {[%clk 0:00:12]} 56. g4 {[%clk 0:00:04]}  fxg4+ {[%clk 0:00:12]} 57. Kh5 {[%clk 0:00:04]}  Qf5# {[%clk 0:00:11]} 0-1


[Site "https://www.chess.com"]

[Event "Titled Tuesday Blitz October 5 2021"]
[White "Przybylski, Wojciech"]
[Black "Gombocz, Ferenc Jr."]
[WhiteFideId "1117599"]
[BlackFideId "775029"]
[WhiteElo "2247"]
[BlackElo "1913"]
[Result "1/2-1/2"]
[Round "10"]
[TimeControl "180+1"]
[Date "2021.10.05"]
[WhiteClock "0:00:05"]
[BlackClock "0:00:09"]

1. d4 {[%clk 0:03:00]}  d5 {[%clk 0:02:59]} 2. c4 {[%clk 0:02:59]}  c6 {[%clk 0:02:59]} 3. Nf3 {[%clk 0:02:59]}  Nf6 {[%clk 0:02:59]} 4. Nc3 {[%clk 0:02:58]}  a6 {[%clk 0:02:59]} 5. b3 {[%clk 0:02:54]}  g6 {[%clk 0:02:56]} 6. e3 {[%clk 0:02:53]}  Bg7 {[%clk 0:02:57]} 7. Be2 {[%clk 0:02:52]}  O-O {[%clk 0:02:58]} 8. O-O {[%clk 0:02:52]}  b5 {[%clk 0:02:58]} 9. Bb2 {[%clk 0:02:51]}  Re8 {[%clk 0:02:48]} 10. Ne5 {[%clk 0:02:49]}  Bb7 {[%clk 0:02:46]} 11. f4 {[%clk 0:02:45]}  Nbd7 {[%clk 0:02:45]} 12. c5 {[%clk 0:02:45]}  Nxe5 {[%clk 0:02:44]} 13. dxe5 {[%clk 0:02:29]}  Nd7 {[%clk 0:02:44]} 14. b4 {[%clk 0:02:28]}  a5 {[%clk 0:02:44]} 15. a3 {[%clk 0:02:28]}  axb4 {[%clk 0:02:44]} 16. axb4 {[%clk 0:02:28]}  e6 {[%clk 0:02:43]} 17. Bd3 {[%clk 0:02:23]}  h6 {[%clk 0:02:32]} 18. Ne2 {[%clk 0:02:20]}  Rxa1 {[%clk 0:02:28]} 19. Qxa1 {[%clk 0:02:19]}  Qa8 {[%clk 0:02:27]} 20. h4 {[%clk 0:02:14]}  Qxa1 {[%clk 0:02:25]} 21. Rxa1 {[%clk 0:02:13]}  Ra8 {[%clk 0:02:25]} 22. Rb1 {[%clk 0:02:00]}  Ra4 {[%clk 0:02:21]} 23. Bc3 {[%clk 0:01:59]}  f6 {[%clk 0:02:17]} 24. exf6 {[%clk 0:01:55]}  Bxf6 {[%clk 0:02:16]} 25. Bxg6 {[%clk 0:01:53]}  Bxc3 {[%clk 0:02:13]} 26. Nxc3 {[%clk 0:01:52]}  Ra3 {[%clk 0:02:13]} 27. Nd1 {[%clk 0:01:04]}  Nf6 {[%clk 0:02:10]} 28. Kf2 {[%clk 0:01:03]}  Ng4+ {[%clk 0:02:03]} 29. Kf3 {[%clk 0:01:03]}  Nh2+ {[%clk 0:01:59]} 30. Ke2 {[%clk 0:00:57]}  Kg7 {[%clk 0:01:57]} 31. Bh5 {[%clk 0:00:53]}  Bc8 {[%clk 0:01:56]} 32. Kf2 {[%clk 0:00:39]}  e5 {[%clk 0:01:40]} 33. fxe5 {[%clk 0:00:38]}  Ng4+ {[%clk 0:01:37]} 34. Bxg4 {[%clk 0:00:23]}  Bxg4 {[%clk 0:01:38]} 35. Kg3 {[%clk 0:00:24]}  Bf5 {[%clk 0:01:36]} 36. Rb2 {[%clk 0:00:21]}  Kf7 {[%clk 0:01:33]} 37. Kf4 {[%clk 0:00:20]}  Ke6 {[%clk 0:01:32]} 38. g4 {[%clk 0:00:20]}  Be4 {[%clk 0:01:26]} 39. Nf2 {[%clk 0:00:20]}  Bh7 {[%clk 0:01:21]} 40. Nh3 {[%clk 0:00:20]}  Ra1 {[%clk 0:01:20]} 41. g5 {[%clk 0:00:20]}  Rf1+ {[%clk 0:01:16]} 42. Rf2 {[%clk 0:00:19]}  Rb1 {[%clk 0:01:12]} 43. gxh6 {[%clk 0:00:18]}  Rxb4+ {[%clk 0:01:09]} 44. Kg5 {[%clk 0:00:18]}  Re4 {[%clk 0:00:51]} 45. Rf6+ {[%clk 0:00:17]}  Ke7 {[%clk 0:00:49]} 46. Rxc6 {[%clk 0:00:15]}  Rxe5+ {[%clk 0:00:48]} 47. Kf4 {[%clk 0:00:15]}  Re4+ {[%clk 0:00:47]} 48. Kf3 {[%clk 0:00:14]}  Rxh4 {[%clk 0:00:41]} 49. Ng5 {[%clk 0:00:14]}  Be4+ {[%clk 0:00:40]} 50. Kg3 {[%clk 0:00:13]}  Rh1 {[%clk 0:00:40]} 51. h7 {[%clk 0:00:10]}  b4 {[%clk 0:00:30]} 52. Rb6 {[%clk 0:00:04]}  b3 {[%clk 0:00:23]} 53. Rxb3 {[%clk 0:00:04]}  Kd7 {[%clk 0:00:22]} 54. Rb8 {[%clk 0:00:03]}  Bxh7 {[%clk 0:00:17]} 55. Nxh7 {[%clk 0:00:03]}  Kc6 {[%clk 0:00:14]} 56. Rb6+ {[%clk 0:00:02]}  Kxc5 {[%clk 0:00:14]} 57. Rb7 {[%clk 0:00:02]}  Kc6 {[%clk 0:00:13]} 58. Rg7 {[%clk 0:00:02]}  Rg1+ {[%clk 0:00:13]} 59. Kf4 {[%clk 0:00:03]}  Rxg7 {[%clk 0:00:13]} 60. Ng5 {[%clk 0:00:03]}  Ra7 {[%clk 0:00:12]} 61. Nf3 {[%clk 0:00:03]}  Kd6 {[%clk 0:00:12]} 62. Nd4 {[%clk 0:00:03]}  Ra1 {[%clk 0:00:12]} 63. Nb5+ {[%clk 0:00:03]}  Kc5 {[%clk 0:00:11]} 64. Nd4 {[%clk 0:00:04]}  Ra4 {[%clk 0:00:11]} 65. Ke5 {[%clk 0:00:04]}  Rc4 {[%clk 0:00:10]} 66. Ne6+ {[%clk 0:00:04]}  Kc6 {[%clk 0:00:10]} 67. Nd4+ {[%clk 0:00:05]}  Kc5 {[%clk 0:00:10]} 68. Ne6+ {[%clk 0:00:05]}  Kc6 {[%clk 0:00:09]} 69. Nd4+ {[%clk 0:00:05]}  Kc5 {[%clk 0:00:09]} 1/2-1/2


[Site "https://www.chess.com"]

[Event "Titled Tuesday Blitz October 5 2021"]
[White "Ronka, Erik"]
[Black "Coto Mederos, Michel"]
[WhiteFideId "505080"]
[BlackFideId "3508528"]
[WhiteElo "2264"]
[BlackElo "2427"]
[Result "0-1"]
[Round "10"]
[TimeControl "180+1"]
[Date "2021.10.05"]
[WhiteClock "0:00:09"]
[BlackClock "0:00:17"]

1. e4 {[%clk 0:03:00]}  e5 {[%clk 0:02:58]} 2. Nf3 {[%clk 0:03:01]}  Nf6 {[%clk 0:02:58]} 3. Nc3 {[%clk 0:02:58]}  Bb4 {[%clk 0:02:57]} 4. Nxe5 {[%clk 0:02:57]}  O-O {[%clk 0:02:57]} 5. Nd3 {[%clk 0:02:57]}  Bxc3 {[%clk 0:02:57]} 6. dxc3 {[%clk 0:02:58]}  Nxe4 {[%clk 0:02:57]} 7. Be2 {[%clk 0:02:50]}  d5 {[%clk 0:02:57]} 8. Nf4 {[%clk 0:02:49]}  c6 {[%clk 0:02:53]} 9. O-O {[%clk 0:02:47]}  Bf5 {[%clk 0:02:48]} 10. Be3 {[%clk 0:02:43]}  Nd7 {[%clk 0:02:47]} 11. f3 {[%clk 0:02:43]}  Nd6 {[%clk 0:02:43]} 12. Bf2 {[%clk 0:02:30]}  Re8 {[%clk 0:02:27]} 13. b3 {[%clk 0:02:24]}  Qf6 {[%clk 0:02:11]} 14. Bd4 {[%clk 0:02:19]}  Qh6 {[%clk 0:02:08]} 15. g3 {[%clk 0:02:11]}  Re7 {[%clk 0:01:54]} 16. Rf2 {[%clk 0:02:02]}  Rae8 {[%clk 0:01:47]} 17. Bf1 {[%clk 0:01:56]}  g5 {[%clk 0:01:15]} 18. Nd3 {[%clk 0:01:52]}  Bxd3 {[%clk 0:01:12]} 19. Qxd3 {[%clk 0:01:19]}  c5 {[%clk 0:01:12]} 20. Bxc5 {[%clk 0:01:17]}  Nxc5 {[%clk 0:01:13]} 21. Qxd5 {[%clk 0:01:18]}  Re5 {[%clk 0:01:13]} 22. Qd4 {[%clk 0:01:14]}  Nf5 {[%clk 0:01:11]} 23. Qb4 {[%clk 0:01:07]}  a5 {[%clk 0:01:00]} 24. Qb5 {[%clk 0:01:04]}  Ne3 {[%clk 0:00:45]} 25. f4 {[%clk 0:00:23]}  gxf4 {[%clk 0:00:42]} 26. gxf4 {[%clk 0:00:24]}  Qg6+ {[%clk 0:00:24]} 27. Kh1 {[%clk 0:00:19]}  Ne4 {[%clk 0:00:23]} 28. Qe2 {[%clk 0:00:09]}  Nxf2+ {[%clk 0:00:21]} 29. Qxf2 {[%clk 0:00:10]}  Qe4+ {[%clk 0:00:19]} 30. Kg1 {[%clk 0:00:09]}  R5e6 {[%clk 0:00:17]} 0-1


[Site "https://www.chess.com"]

[Event "Titled Tuesday Blitz October 5 2021"]
[White "Rustemov, Alexander"]
[Black "Madaminov, Mukhiddin"]
[WhiteFideId "4119002"]
[BlackFideId "14210703"]
[WhiteElo "2801"]
[BlackElo "1855"]
[Result "0-1"]
[Round "10"]
[TimeControl "180+1"]
[Date "2021.10.05"]
[WhiteClock "0:00:05"]
[BlackClock "0:00:06"]

1. d4 {[%clk 0:03:00]}  Nf6 {[%clk 0:02:59]} 2. c4 {[%clk 0:03:00]}  e6 {[%clk 0:02:59]} 3. Nf3 {[%clk 0:02:59]}  d5 {[%clk 0:03:00]} 4. Nc3 {[%clk 0:02:59]}  Bb4 {[%clk 0:02:59]} 5. Bg5 {[%clk 0:02:57]}  Nbd7 {[%clk 0:02:59]} 6. cxd5 {[%clk 0:02:52]}  exd5 {[%clk 0:02:59]} 7. Rc1 {[%clk 0:02:51]}  h6 {[%clk 0:02:56]} 8. Bxf6 {[%clk 0:02:41]}  Qxf6 {[%clk 0:02:57]} 9. e3 {[%clk 0:02:39]}  O-O {[%clk 0:02:55]} 10. Be2 {[%clk 0:02:36]}  c6 {[%clk 0:02:55]} 11. O-O {[%clk 0:02:33]}  Qe7 {[%clk 0:02:47]} 12. a3 {[%clk 0:02:25]}  Bd6 {[%clk 0:02:46]} 13. Qc2 {[%clk 0:02:20]}  Nf6 {[%clk 0:02:45]} 14. h3 {[%clk 0:02:18]}  Re8 {[%clk 0:02:39]} 15. Bd3 {[%clk 0:02:11]}  Ne4 {[%clk 0:02:24]} 16. Rce1 {[%clk 0:01:54]}  Bf5 {[%clk 0:02:16]} 17. Nd2 {[%clk 0:01:51]}  Nxd2 {[%clk 0:01:47]} 18. Qxd2 {[%clk 0:01:50]}  Qg5 {[%clk 0:01:47]} 19. Bxf5 {[%clk 0:01:45]}  Qxf5 {[%clk 0:01:48]} 20. Qe2 {[%clk 0:01:42]}  Re6 {[%clk 0:01:45]} 21. Qg4 {[%clk 0:01:38]}  Qxg4 {[%clk 0:01:37]} 22. hxg4 {[%clk 0:01:37]}  Rae8 {[%clk 0:01:38]} 23. Re2 {[%clk 0:01:23]}  Kh7 {[%clk 0:01:13]} 24. Rfe1 {[%clk 0:01:20]}  Rg6 {[%clk 0:01:10]} 25. f3 {[%clk 0:01:18]}  Rge6 {[%clk 0:01:09]} 26. Kf2 {[%clk 0:01:15]}  Bc7 {[%clk 0:01:02]} 27. Na4 {[%clk 0:01:08]}  Bb6 {[%clk 0:01:02]} 28. b4 {[%clk 0:01:05]}  Kg6 {[%clk 0:00:58]} 29. Nc5 {[%clk 0:01:05]}  Bxc5 {[%clk 0:00:58]} 30. bxc5 {[%clk 0:01:05]}  b5 {[%clk 0:00:52]} 31. cxb6 {[%clk 0:01:02]}  axb6 {[%clk 0:00:52]} 32. a4 {[%clk 0:01:00]}  Ra8 {[%clk 0:00:51]} 33. Ra1 {[%clk 0:00:59]}  Ra5 {[%clk 0:00:46]} 34. Rb2 {[%clk 0:00:57]}  c5 {[%clk 0:00:41]} 35. Rb5 {[%clk 0:00:36]}  cxd4 {[%clk 0:00:37]} 36. exd4 {[%clk 0:00:36]}  Rc6 {[%clk 0:00:36]} 37. Rxa5 {[%clk 0:00:31]}  bxa5 {[%clk 0:00:37]} 38. Ke3 {[%clk 0:00:30]}  Rc3+ {[%clk 0:00:33]} 39. Kf4 {[%clk 0:00:30]}  f6 {[%clk 0:00:30]} 40. Rb1 {[%clk 0:00:20]}  Rc4 {[%clk 0:00:30]} 41. Ke3 {[%clk 0:00:19]}  Rxa4 {[%clk 0:00:20]} 42. Rb5 {[%clk 0:00:19]}  Ra2 {[%clk 0:00:20]} 43. g3 {[%clk 0:00:18]}  Ra3+ {[%clk 0:00:20]} 44. Kf4 {[%clk 0:00:17]}  Kf7 {[%clk 0:00:16]} 45. Rxd5 {[%clk 0:00:17]}  Ke6 {[%clk 0:00:16]} 46. Rb5 {[%clk 0:00:17]}  a4 {[%clk 0:00:14]} 47. Ra5 {[%clk 0:00:16]}  Kd6 {[%clk 0:00:09]} 48. Ra7 {[%clk 0:00:13]}  g6 {[%clk 0:00:04]} 49. Ra6+ {[%clk 0:00:11]}  Ke7 {[%clk 0:00:04]} 50. Ke4 {[%clk 0:00:08]}  Ra1 {[%clk 0:00:04]} 51. Ra7+ {[%clk 0:00:08]}  Kd6 {[%clk 0:00:04]} 52. Ra6+ {[%clk 0:00:08]}  Kc7 {[%clk 0:00:02]} 53. Rxf6 {[%clk 0:00:05]}  a3 {[%clk 0:00:03]} 54. Ra6 {[%clk 0:00:04]}  Kb7 {[%clk 0:00:01]} 55. Ra4 {[%clk 0:00:03]}  a2 {[%clk 0:00:02]} 56. Kf4 {[%clk 0:00:03]}  Kc6 {[%clk 0:00:02]} 57. Ra8 {[%clk 0:00:01]}  Kd5 {[%clk 0:00:02]} 58. Rd8+ {[%clk 0:00:01]}  Kc4 {[%clk 0:00:02]} 59. Rc8+ {[%clk 0:00:01]}  Kxd4 {[%clk 0:00:03]} 60. Rd8+ {[%clk 0:00:02]}  Kc5 {[%clk 0:00:03]} 61. Ra8 {[%clk 0:00:03]}  Kd6 {[%clk 0:00:04]} 62. Rd8+ {[%clk 0:00:03]}  Ke6 {[%clk 0:00:04]} 63. Ra8 {[%clk 0:00:03]}  Kf6 {[%clk 0:00:04]} 64. Ra6+ {[%clk 0:00:04]}  Kf7 {[%clk 0:00:05]} 65. Ra7+ {[%clk 0:00:04]}  Ke6 {[%clk 0:00:05]} 66. Ra6+ {[%clk 0:00:04]}  Kd5 {[%clk 0:00:06]} 67. Ra8 {[%clk 0:00:05]}  Kd4 {[%clk 0:00:06]} 68. Rd8+ {[%clk 0:00:04]}  Kc3 {[%clk 0:00:07]} 69. Rc8+ {[%clk 0:00:04]}  Kd3 {[%clk 0:00:07]} 70. Rd8+ {[%clk 0:00:05]}  Ke2 {[%clk 0:00:07]} 71. Re8+ {[%clk 0:00:04]}  Kf2 {[%clk 0:00:08]} 72. Ra8 {[%clk 0:00:05]}  Kg2 {[%clk 0:00:06]} 73. Ra6 {[%clk 0:00:04]}  g5+ {[%clk 0:00:06]} 74. Kf5 {[%clk 0:00:04]}  Kxf3 {[%clk 0:00:05]} 75. Ra3+ {[%clk 0:00:04]}  Kg2 {[%clk 0:00:05]} 76. Ra8 {[%clk 0:00:04]}  Rf1+ {[%clk 0:00:04]} 77. Kg6 {[%clk 0:00:04]}  a1=Q {[%clk 0:00:05]} 78. Rxa1 {[%clk 0:00:05]}  Rxa1 {[%clk 0:00:05]} 79. Kxh6 {[%clk 0:00:05]}  Ra5 {[%clk 0:00:06]} 0-1


[Site "https://www.chess.com"]

[Event "Titled Tuesday Blitz October 5 2021"]
[White "Sadhwani, Raunak"]
[Black "Krysa, Leandro"]
[WhiteFideId "35093487"]
[BlackFideId "116807"]
[WhiteElo "2517"]
[BlackElo "2490"]
[Result "1-0"]
[Round "10"]
[TimeControl "180+1"]
[Date "2021.10.05"]
[WhiteClock "0:01:28"]
[BlackClock "0:01:52"]

1. b3 {[%clk 0:03:00]}  c5 {[%clk 0:02:58]} 2. Bb2 {[%clk 0:03:00]}  Nc6 {[%clk 0:02:58]} 3. e4 {[%clk 0:03:00]}  d6 {[%clk 0:02:58]} 4. Bb5 {[%clk 0:02:58]}  e5 {[%clk 0:02:58]} 5. Bxc6+ {[%clk 0:02:53]}  bxc6 {[%clk 0:02:57]} 6. d3 {[%clk 0:02:54]}  f5 {[%clk 0:02:56]} 7. exf5 {[%clk 0:02:52]}  Bxf5 {[%clk 0:02:57]} 8. Nc3 {[%clk 0:02:51]}  Nf6 {[%clk 0:02:55]} 9. Nge2 {[%clk 0:02:52]}  Be7 {[%clk 0:02:54]} 10. Ng3 {[%clk 0:02:52]}  Bg6 {[%clk 0:02:50]} 11. h4 {[%clk 0:02:52]}  O-O {[%clk 0:02:48]} 12. h5 {[%clk 0:02:52]}  Bf7 {[%clk 0:02:48]} 13. h6 {[%clk 0:02:49]}  g6 {[%clk 0:02:48]} 14. Qe2 {[%clk 0:02:49]}  Nd5 {[%clk 0:02:46]} 15. Nge4 {[%clk 0:02:47]}  Nf4 {[%clk 0:02:44]} 16. Qf1 {[%clk 0:02:47]}  d5 {[%clk 0:02:42]} 17. Nd2 {[%clk 0:02:47]}  c4 {[%clk 0:02:42]} 18. g3 {[%clk 0:02:40]}  Ne6 {[%clk 0:02:41]} 19. dxc4 {[%clk 0:02:38]}  Nd4 {[%clk 0:02:33]} 20. O-O-O {[%clk 0:02:36]}  Bg5 {[%clk 0:02:28]} 21. Kb1 {[%clk 0:02:34]}  Be6 {[%clk 0:02:22]} 22. Qe1 {[%clk 0:01:39]}  Bf5 {[%clk 0:02:09]} 23. Rc1 {[%clk 0:01:32]}  dxc4 {[%clk 0:02:01]} 24. Qxe5 {[%clk 0:01:31]}  Bxd2 {[%clk 0:01:52]} 25. Qg7# {[%clk 0:01:28]} 1-0


[Site "https://www.chess.com"]